bitfinex/quotes_ETHUSD_20250411
["timestamp","ask_amount","ask_price","bid_price","bid_amount"]
[1744358796018,6.40781,1560.6,1560.4,0.2]
[1744358796398,6.40781,1560.6,1560.2,0.2]
[1744358796601,54.943,1560.7,1560.6,0.2]
[1744358797128,61.35038,1560.7,1560.6,0.2]
[1744358797333,61.35038,1560.7,1560.4,0.2]
[1744358797516,61.35038,1560.7,1560.6,0.2]
[1744358797517,54.943,1560.7,1560.6,0.2]
[1744358797721,6.40821,1560.5,1560.2,0.2]
[1744358797909,6.40867,1560.4,1560.3,0.2]
[1744358798114,6.4091,1560.3,1560.1,0.05]
[1744358798508,6.40943,1560.2,1560.1,0.05]
[1744358798706,6.41035,1560.0,1559.9,0.2]
[1744358798925,6.41107,1559.8,1559.6,0.2]
[1744358799216,6.41025,1560.0,1559.9,0.2]
[1744358799416,6.41109,1559.8,1559.3,1.5077]
[1744358799746,6.41217,1559.6,1559.1,0.05]
[1744358799945,54.951,1559.7,1559.1,0.05]
[1744358800432,6.4119,1559.6,1559.1,0.05]
[1744358800643,6.41318,1559.3,1559.1,0.05]
[1744358801007,6.41323,1559.3,1559.1,0.05]
[1744358801196,6.41354,1559.2,1559.1,0.05]
[1744358801396,12.82673,1559.3,1559.1,0.05]
[1744358801592,6.4126,1559.5,1559.1,0.05]
[1744358801847,6.41349,1559.3,1559.1,0.05]
[1744358802406,58.501,1559.7,1558.5,7.96236]
[1744358802407,6.41489,1558.9,1558.5,1.5462]
[1744358802635,61.38389,1558.9,1558.5,1.5462]
[1744358803428,6.41644,1558.5,1558.1,0.05]
[1744358803799,12.83319,1558.5,1558.1,0.05]
[1744358804038,6.41749,1558.3,1558.1,0.05]
[1744358804332,6.41685,1558.4,1558.1,0.05]
[1744358804629,6.41579,1558.7,1558.1,0.05]
[1744358804830,6.41555,1558.8,1558.1,0.05]
[1744358805017,52.96840224,1558.9,1558.3,6.41722]
[1744358805226,52.96840224,1558.9,1558.1,6.4677]
[1744358805394,52.96840224,1558.9,1558.1,0.05]
[1744358805601,52.96840224,1558.9,1558.4,6.41643]
[1744358805829,59.38340224,1558.9,1558.3,6.41709]
[1744358806133,59.38340224,1558.9,1558.1,0.05]
[1744358806134,6.41701,1558.4,1558.1,0.05]
[1744358806452,6.41649,1558.5,1558.1,0.05]
[1744358806600,6.41746,1558.3,1558.1,0.05]
[1744358806795,6.41705,1558.4,1558.1,0.05]
[1744358807001,12.83422,1558.4,1558.1,0.05]
[1744358807201,6.41725,1558.3,1558.1,0.05]
[1744358807435,6.41766,1558.2,1558.1,0.05]
[1744358807597,6.41766,1558.2,1557.6,1.5462]
[1744358807805,61.42212,1558.1,1557.6,1.5462]
[1744358808233,61.42212,1558.1,1557.8,6.41905]
[1744358808234,55.004,1558.1,1557.8,6.41905]
[1744358808620,55.004,1558.1,1557.9,6.41861]
[1744358808822,6.41594,1558.7,1557.6,7.96626]
[1744358808823,6.41575,1558.7,1558.0,6.41848]
[1744358809002,55.004,1558.8,1557.9,6.41867]
[1744358809200,6.41702,1558.4,1557.7,6.41942]
[1744358809525,61.41922,1558.8,1557.9,12.83737]
[1744358809526,6.41622,1558.6,1557.9,12.83737]
[1744358809733,6.41643,1558.5,1557.9,12.83737]
[1744358810031,6.41644,1558.5,1557.9,6.41868]
[1744358810234,6.41622,1558.6,1557.9,6.41853]
[1744358810436,55.004,1558.8,1558.0,6.41848]
[1744358810614,55.004,1558.8,1558.3,6.41724]
[1744358810809,55.004,1558.8,1558.2,6.41728]
[1744358810810,61.41945,1558.8,1558.2,6.41728]
[1744358811021,55.004,1558.8,1558.3,6.41718]
[1744358811223,67.83481,1558.8,1558.2,6.41728]
[1744358811424,61.41925,1558.8,1558.2,6.41728]
[1744358811624,55.004,1558.8,1558.3,6.41719]
[1744358811807,61.41921,1558.8,1558.2,6.41728]
[1744358812004,55.004,1558.8,1557.9,3.641853]
[1744358812203,55.004,1558.8,1558.3,1.5426]
[1744358812437,1.489,1559.3,1558.3,1.5426]
[1744358812741,6.41567,1558.7,1558.3,1.5426]
[1744358812970,6.41338,1559.3,1558.3,1.5426]
[1744358812971,6.41438,1559.0,1558.3,1.5426]
[1744358813174,6.41438,1559.0,1557.5,5.95513158]
[1744358813175,6.41672,1558.5,1557.9,7.84875]
[1744358813376,6.41731,1558.3,1557.9,1.4299]
[1744358813663,6.41642,1558.5,1557.9,7.84847]
[1744358813832,0.33974451,1559.7,1558.5,4.5162]
[1744358814035,0.33974451,1559.7,1559.6,6.4119]
[1744358814463,0.33974451,1559.7,1559.4,1.5162]
[1744358814782,0.33974451,1559.7,1559.4,7.92866]
[1744358815084,0.33974451,1559.7,1559.4,1.5162]
[1744358815238,0.33974451,1559.7,1559.6,6.4119]
[1744358815734,0.33974451,1559.7,1559.4,7.92889]
[1744358815935,6.41231,1559.6,1559.0,7.93124]
[1744358816237,61.42741,1559.8,1559.0,1.5172]
[1744358816578,6.41006,1560.1,1559.5,6.41199]
[1744358816944,6.411,1559.9,1559.3,6.41311]
[1744358817148,5.88354704,1559.5,1559.0,1.5172]
[1744358817335,6.41339,1559.3,1559.0,1.5172]
[1744358817540,6.41314,1559.3,1559.0,1.5172]
[1744358818004,6.41314,1559.3,1558.6,6.416]
[1744358818005,6.41467,1559.0,1558.6,1.5427]
[1744358818288,6.41497,1558.9,1558.6,1.5427]
[1744358818489,61.42783,1559.7,1558.6,1.5427]
[1744358818646,6.41335,1559.3,1558.7,6.41536]
[1744358818854,61.42784,1559.7,1559.1,6.41378]
[1744358819048,6.41252,1559.5,1558.9,6.41439]
[1744358819293,6.41272,1559.4,1558.8,3.0]
[1744358819453,67.83934,1559.7,1559.1,6.41355]
[1744358819653,55.016,1559.7,1559.2,6.41334]
[1744358819853,67.83955,1559.7,1559.1,6.41367]
[1744358820057,6.41192,1559.6,1559.0,6.41407]
[1744358820258,6.41192,1559.6,1558.9,3.0]
[1744358820259,6.41339,1559.3,1558.8,6.41512]
[1744358820472,6.41277,1559.4,1558.9,6.41477]
[1744358820755,6.41277,1559.4,1558.9,6.4146]
[1744358820943,55.016,1559.7,1558.7,6.41551]
[1744358821160,55.016,1559.7,1559.0,6.41418]
[1744358821161,6.4122,1559.6,1559.0,6.41418]
[1744358821364,6.4122,1559.6,1559.0,6.41408]
[1744358821594,61.42749,1559.7,1559.1,6.41365]
[1744358821749,6.4124,1559.5,1558.9,6.41449]
[1744358821949,6.41231,1559.5,1558.6,1.5427]
[1744358822297,3.0,1559.1,1558.2,1.4224]
[1744358822588,6.41623,1558.6,1558.2,1.4224]
[1744358822790,6.41482,1558.9,1557.8,7.84133]
[1744358822791,6.41724,1558.3,1557.8,7.84133]
[1744358823116,6.41602,1558.6,1557.9,6.41857]
[1744358823261,6.41644,1558.5,1557.9,12.83745]
[1744358823602,6.41735,1558.3,1557.8,7.84152]
[1744358823780,6.41735,1558.3,1557.8,1.4224]
[1744358823781,6.41776,1558.2,1557.8,1.4224]
[1744358824101,6.41735,1558.3,1557.8,1.4224]
[1744358824296,12.83494,1558.3,1557.8,1.4224]
[1744358824486,6.41701,1558.4,1557.8,1.4224]
[1744358824805,6.41765,1558.3,1557.8,1.4224]
[1744358825388,6.41686,1558.4,1557.8,14.26065]
[1744358825562,6.41686,1558.4,1557.8,7.84138]
[1744358825765,0.641686,1558.4,1557.2,1.4927]
[1744358825964,6.41894,1557.9,1557.3,6.42102]
[1744358826195,6.41969,1557.8,1557.3,6.42132]
[1744358826493,6.41965,1557.8,1557.2,7.91425]
[1744358827088,12.83815,1557.9,1557.3,6.42129]
[1744358827297,6.41892,1557.9,1557.3,6.42118]
[1744358827598,6.41892,1557.9,1557.3,12.84226]
[1744358827795,6.41983,1557.7,1557.2,7.91447]
[1744358827951,6.42031,1557.6,1557.2,1.4927]
[1744358828155,12.839,1557.8,1557.2,7.91428]
[1744358828351,6.41932,1557.8,1557.3,12.84245]
[1744358828598,56.4777,1558.0,1557.2,8.710858]
[1744358828795,6.4193,1557.9,1557.4,6.42076]
[1744358828961,56.4777,1558.0,1557.5,6.42051]
[1744358829168,6.41891,1557.9,1557.4,6.42092]
[1744358829504,6.41967,1557.8,1557.3,0.5868567]
[1744358829659,6.41967,1557.8,1557.3,7.0079067]
[1744358829856,55.028,1558.0,1557.3,1.92979837]
[1744358830055,1.4969,1558.5,1557.6,6.42013]
[1744358830056,6.41692,1558.4,1557.6,6.42013]
[1744358830271,6.41725,1558.3,1557.8,6.41908]
[1744358830470,55.041,1558.6,1557.5,1.5505]
[1744358830471,9.41642,1558.5,1557.5,1.5505]
[1744358830700,6.4181,1558.1,1557.5,7.97085]
[1744358830858,6.4181,1558.1,1557.5,7.97073]
[1744358831167,6.41701,1558.4,1557.9,6.41888]
[1744358831351,6.41734,1558.3,1557.8,6.41922]
[1744358831552,6.41643,1558.5,1557.9,6.41889]
[1744358831779,55.041,1558.6,1558.2,6.41749]
[1744358831953,6.41701,1558.4,1558.2,0.3145278]
[1744358832178,6.41724,1558.3,1558.2,0.3145278]
[1744358832607,10.700665,1558.3,1558.2,0.3145278]
[1744358832815,6.41724,1558.3,1558.2,0.3145278]
[1744358832991,6.41701,1558.4,1558.2,0.3145278]
[1744358833190,55.041,1558.6,1558.2,0.3145278]
[1744358833391,6.417,1558.4,1558.2,0.3145278]
[1744358833611,6.41724,1558.3,1558.2,0.3145278]
[1744358833777,6.417,1558.4,1558.2,0.3145278]
[1744358833976,55.041,1558.6,1558.2,0.3145278]
[1744358834181,61.45707,1558.6,1558.2,0.3145278]
[1744358834375,6.41459,1559.0,1558.4,6.41652]
[1744358834617,6.41459,1559.0,1558.5,6.41627]
[1744358834778,6.41479,1558.9,1558.5,0.58599618]
[1744358834980,62.93605,1559.3,1558.5,0.58599618]
[1744358835178,9.41382,1559.2,1558.5,0.90052398]
[1744358835514,6.41601,1558.6,1558.5,0.3145278]
[1744358835814,6.41502,1558.9,1558.5,0.3145278]
[1744358835979,12.83017,1558.9,1558.5,0.3145278]
[1744358836180,6.41561,1558.7,1558.5,0.3145278]
[1744358836582,6.41601,1558.6,1558.5,0.3145278]
[1744358837702,9.41601,1558.6,1558.5,0.3145278]
[1744358838273,6.41811,1558.1,1557.7,6.41968]
[1744358838501,12.83518,1558.3,1557.8,6.41902]
[1744358838703,6.4177,1558.2,1557.8,6.41929]
[1744358839109,6.41729,1558.3,1557.8,6.41929]
[1744358839110,6.41729,1558.3,1557.8,12.8384]
[1744358839317,6.41729,1558.3,1557.8,6.41911]
[1744358839776,61.46487,1558.4,1557.9,6.41889]
[1744358839980,55.048,1558.4,1557.9,0.641889]
[1744358840179,55.048,1558.4,1558.3,6.41724]
[1744358840408,1.594,1559.0,1558.0,7.00498029]
[1744358840409,6.41478,1558.9,1558.1,6.41804]
[1744358840609,61.46513,1559.1,1558.6,6.41584]
[1744358840787,6.4155,1558.8,1558.3,6.41705]
[1744358841114,64.46519,1559.1,1558.2,0.58607128]
[1744358841279,64.46519,1559.1,1558.0,7.00497029]
[1744358841280,6.41724,1558.3,1558.0,0.58650029]
[1744358841477,6.41798,1558.2,1557.9,1.5008]
[1744358841679,7.9128,1558.7,1557.6,6.42007]
[1744358841680,12.83683,1558.1,1557.6,6.41989]
[1744358841985,6.41687,1558.4,1557.9,6.41863]
[1744358842303,6.41741,1558.3,1557.9,6.41863]
[1744358842504,12.83492,1558.3,1557.9,6.41863]
[1744358842702,6.4162,1558.6,1558.1,6.41784]
[1744358843023,6.96601,1558.6,1557.5,1.5117]
[1744358843229,12.83682,1558.1,1557.6,6.41993]
[1744358843381,6.41863,1558.0,1557.8,4.61755816]
[1744358843586,6.41889,1557.9,1557.8,4.61755816]
[1744358845289,55.051,1558.2,1557.8,4.61755816]
[1744358845485,6.41829,1558.1,1557.8,4.61755816]
[1744358845687,12.83638,1558.1,1557.6,6.42004]
[1744358845909,55.051,1558.2,1557.8,6.41914]
[1744358846116,61.46881,1558.2,1557.8,6.41914]
[1744358846315,6.41923,1557.9,1557.4,6.42089]
[1744358846500,6.41834,1558.1,1557.6,6.42011]
[1744358846706,6.41849,1558.0,1557.6,6.42011]
[1744358846922,6.41849,1558.0,1557.7,0.58840951]
[1744358847129,6.41813,1558.1,1557.7,7.59637618]
[1744358847424,55.051,1558.2,1557.8,0.58840951]
[1744358847623,6.41813,1558.1,1557.8,0.58840951]
[1744358847822,6.41889,1557.9,1557.7,0.58846667]
[1744358848040,61.46903,1558.2,1557.7,0.58846667]
[1744358848211,55.051,1558.2,1557.5,6.42032]
[1744358848415,12.83661,1558.1,1557.8,8.36712524]
[1744358848635,6.41856,1558.0,1557.8,8.36712524]
[1744358849639,67.88668,1558.2,1557.8,8.36712524]
[1744358849853,55.051,1558.2,1557.8,14.78622524]
[1744358850009,55.051,1558.2,1557.9,0.58901636]
[1744358850211,61.4688,1558.2,1557.9,1.17802562]
[1744358850413,55.051,1558.2,1557.9,1.17802562]
[1744358850623,6.41844,1558.1,1557.9,1.17802562]
[1744358850937,6.41889,1557.9,1557.8,8.36712524]
[1744358851735,6.4193,1557.8,1557.7,8.36712524]
[1744358852726,6.41889,1557.9,1557.7,8.36712524]
[1744358852927,6.4193,1557.8,1557.7,8.36712524]
[1744358853452,9.9693,1557.8,1557.7,8.36712524]
[1744358853655,6.42095,1557.4,1557.3,6.2312495]
[1744358854220,6.41978,1557.7,1557.3,6.2312495]
[1744358854419,12.83978,1557.7,1557.3,6.2312495]
[1744358854628,6.42056,1557.5,1557.3,6.2312495]
[1744358855038,6.42008,1557.7,1557.3,6.2312495]
[1744358855218,12.8401,1557.7,1557.3,6.2312495]
[1744358855420,6.42029,1557.6,1557.2,6.42168]
[1744358855867,6.42002,1557.7,1557.2,6.42157]
[1744358856039,4.4941,1558.1,1557.2,6.42178]
[1744358856040,6.41891,1557.9,1557.2,6.42178]
[1744358856244,1.4941,1558.1,1557.5,6.42016]
[1744358856519,6.41831,1558.1,1557.6,12.83975]
[1744358856718,6.41831,1558.1,1557.6,6.41978]
[1744358857260,6.41855,1558.0,1557.6,6.41978]
[1744358857464,1.594,1558.8,1557.7,0.35391645]
[1744358857663,6.41684,1558.4,1558.0,6.41829]
[1744358857835,6.41697,1558.4,1557.9,6.41851]
[1744358858166,6.41561,1558.7,1558.3,6.41712]
[1744358858839,61.4818,1558.9,1558.4,6.41665]
[1744358859221,61.4818,1558.9,1558.4,6.41662]
[1744358859533,6.4154,1558.8,1558.3,7.86461]
[1744358859731,6.41592,1558.7,1558.3,1.4475]
[1744358859943,55.067,1558.9,1558.3,7.86461]
[1744358859944,61.48201,1558.9,1558.3,7.86461]
[1744358860149,6.41533,1558.8,1558.4,6.41681]
[1744358860335,12.83083,1558.8,1558.4,6.41681]
[1744358860546,6.41566,1558.7,1558.3,1.4475]
[1744358860752,12.83067,1558.8,1558.3,7.86459]
[1744358860949,6.41581,1558.7,1558.3,7.86459]
[1744358861152,6.41581,1558.7,1558.3,1.4475]
[1744358861341,6.41521,1558.8,1558.3,7.86473]
[1744358861660,6.41583,1558.7,1558.3,1.4475]
[1744358861967,6.41583,1558.7,1558.0,6.41829]
[1744358861968,6.41742,1558.3,1557.9,7.87757]
[1744358862178,0.641583,1558.7,1557.9,7.87757]
[1744358862328,0.641583,1558.7,1557.9,7.87773]
[1744358862329,3.0,1558.7,1557.9,7.87773]
[1744358862666,12.83432,1558.4,1557.9,7.87758]
[1744358862824,6.41727,1558.3,1557.9,7.87758]
[1744358863030,55.057,1558.5,1558.3,6.41688]
[1744358863231,55.057,1558.5,1558.4,6.41683]
[1744358863431,61.47349,1558.5,1558.1,6.41802]
[1744358863655,6.41698,1558.4,1557.9,7.87758]
[1744358863863,12.83479,1558.3,1557.9,7.87758]
[1744358864071,6.4173,1558.3,1557.9,1.4589]
[1744358864363,6.4173,1558.3,1557.9,14.29648]
[1744358864562,6.41686,1558.4,1557.9,14.29627]
[1744358864766,61.47346,1558.5,1558.1,6.41789]
[1744358864980,55.057,1558.5,1558.3,6.41711]
[1744358865265,55.057,1558.5,1558.2,6.41747]
[1744358865569,55.057,1558.5,1558.1,6.41806]
[1744358865738,61.47347,1558.5,1558.1,6.41806]
[1744358865934,55.057,1558.5,1558.3,6.41693]
[1744358866136,55.057,1558.5,1558.4,6.41683]
[1744358866736,55.057,1558.5,1558.3,6.41693]
[1744358867452,6.41433,1559.1,1558.6,6.41599]
[1744358867644,6.41433,1559.1,1558.6,6.41584]
[1744358867879,6.41494,1558.9,1558.4,6.4167]
[1744358868057,6.41537,1558.8,1558.4,6.4167]
[1744358868563,12.83079,1558.8,1558.4,6.4167]
[1744358868743,6.41468,1559.0,1558.2,6.41745]
[1744358868942,6.41595,1558.7,1558.2,6.41745]
[1744358869142,12.8319,1558.7,1558.2,12.83497]
[1744358869442,12.83234,1558.6,1558.2,6.41745]
[1744358869670,6.41616,1558.6,1558.1,6.41795]
[1744358869848,6.41565,1558.7,1558.2,6.41762]
[1744358870177,6.41489,1558.9,1558.4,6.41679]
[1744358870473,6.4154,1558.8,1558.4,6.41679]
[1744358870673,12.83085,1558.8,1558.4,6.41679]
[1744358870976,6.41573,1558.7,1558.4,6.41679]
[1744358871151,6.4154,1558.8,1558.3,6.41705]
[1744358871338,12.8308,1558.8,1558.4,6.4167]
[1744358871637,6.4154,1558.8,1558.4,6.4167]
[1744358871971,12.82846,1559.1,1558.4,6.41683]
[1744358872273,6.41415,1559.1,1558.7,6.41537]
[1744358872578,6.41538,1558.8,1558.5,0.58827408]
[1744358872735,6.41493,1558.9,1558.5,13.42060408]
[1744358872936,6.41533,1558.8,1558.5,0.58827408]
[1744358873157,0.55,1559.1,1558.2,6.41746]
[1744358873403,6.41561,1558.7,1558.1,1.4869]
[1744358873696,8.2656,1558.8,1557.7,6.2312495]
[1744358873697,6.41635,1558.6,1557.7,7.7795495]
[1744358873898,6.41667,1558.5,1558.0,6.41844]
[1744358874087,6.41699,1558.4,1558.0,6.41828]
[1744358874596,6.41699,1558.4,1557.9,12.83778]
[1744358874797,6.41728,1558.3,1557.9,12.83749]
[1744358875095,6.41728,1558.3,1557.9,6.41872]
[1744358875295,6.41728,1558.3,1558.0,6.41844]
[1744358876208,6.41728,1558.3,1557.9,6.41872]
[1744358876382,6.41792,1558.2,1557.7,1.5483]
[1744358876586,6.41767,1558.2,1557.8,6.41914]
[1744358876902,6.41767,1558.2,1557.8,12.8383]
[1744358877101,6.41767,1558.2,1557.8,6.41914]
[1744358877685,6.41693,1558.4,1557.7,7.96797]
[1744358877892,6.41833,1558.1,1557.7,7.96797]
[1744358878065,6.41892,1557.9,1557.7,1.5483]
[1744358878407,6.41906,1557.9,1557.4,8.01966]
[1744358878565,6.796,1558.9,1557.4,9.00367001]
[1744358878900,6.41477,1558.9,1558.0,1.5674]
[1744358879103,6.41519,1558.8,1558.0,1.5674]
[1744358879303,6.41684,1558.4,1558.0,1.5674]
[1744358879471,6.41685,1558.4,1558.0,1.5674]
[1744358879667,12.83501,1558.3,1557.9,6.41884]
[1744358879864,6.41766,1558.2,1557.5,6.42029]
[1744358880176,6.41904,1557.9,1557.5,9.99081557]
[1744358880498,6.41947,1557.8,1557.5,9.99081557]
[1744358880719,6.41973,1557.7,1557.5,9.99081557]
[1744358880922,6.42013,1557.6,1557.5,9.99081557]
[1744358881854,6.42013,1557.6,1557.5,5.90762014]
[1744358881855,7.704116,1557.6,1557.5,5.90762014]
[1744358882028,6.42137,1557.3,1557.2,8.39570996]
[1744358882175,66.42924001,1557.3,1557.2,8.39570996]
[1744358882616,6.42235,1557.1,1556.8,11.8118919]
[1744358882822,6.42235,1557.1,1556.6,0.499063]
[1744358882823,6.42366,1556.8,1556.6,0.499063]
[1744358882989,12.84736,1556.8,1556.6,0.499063]
[1744358883320,6.42332,1556.9,1556.6,0.499063]
[1744358883475,6.42371,1556.8,1556.6,0.499063]
[1744358883681,6.42328,1556.9,1556.6,0.499063]
[1744358884022,6.42371,1556.8,1556.6,0.499063]
[1744358884222,6.42384,1556.7,1556.6,0.499063]
[1744358885020,6.42508,1556.4,1556.3,8.97409986]
[1744358885203,6.42472,1556.5,1556.3,8.97409986]
[1744358885624,6.42508,1556.4,1556.3,8.97409986]
[1744358885907,6.42472,1556.5,1556.3,8.97409986]
[1744358886239,6.42402,1556.7,1556.3,8.97409986]
[1744358886396,6.42402,1556.7,1556.2,6.42573]
[1744358886397,12.84818,1556.7,1556.2,6.42573]
[1744358886594,1.4923,1556.8,1556.3,0.12574919]
[1744358886917,6.4236,1556.8,1556.3,6.42516]
[1744358887220,6.42302,1556.9,1556.5,6.42451]
[1744358887378,6.4224,1557.1,1556.4,0.12552622]
[1744358887581,61.47441,1557.3,1556.8,6.42313]
[1744358887802,61.47441,1557.3,1556.9,6.545928]
[1744358888221,55.053,1557.3,1556.9,0.122918]
[1744358888423,6.42016,1557.6,1556.9,0.122918]
[1744358888592,56.5703,1557.9,1557.2,6.42138]
[1744358888799,6.42013,1557.6,1556.6,1.5879]
[1744358889113,6.42013,1557.6,1556.4,5.35995563]
[1744358889114,7.91413,1557.2,1556.7,0.11963047]
[1744358889321,6.42323,1556.9,1556.4,6.42506]
[1744358889517,55.078,1557.1,1556.5,0.1226641]
[1744358889721,55.078,1557.1,1556.4,6.42502]
[1744358890022,61.50023,1557.1,1556.6,6.42419]
[1744358890323,55.078,1557.1,1556.7,0.12072518]
[1744358890624,55.078,1557.1,1556.4,6.42489]
[1744358890928,55.078,1557.1,1556.5,6.42465]
[1744358891221,55.078,1557.1,1556.8,6.42332]
[1744358891422,55.078,1557.1,1556.7,6.42382]
[1744358891582,61.50023,1557.1,1556.6,6.42421]
[1744358891784,61.50023,1557.1,1556.6,12.84829]
[1744358892002,61.50035,1557.1,1556.6,6.42423]
[1744358892216,61.50035,1557.1,1556.3,11.01334]
[1744358892413,55.078,1557.1,1556.3,1.5879]
[1744358892743,55.078,1557.1,1557.0,6.4226]
[1744358893106,6.42266,1557.0,1556.6,6.42403]
[1744358893301,6.42266,1557.0,1556.5,6.42445]
[1744358893496,61.50022,1557.1,1556.6,6.42399]
[1744358893700,61.50022,1557.1,1556.7,6.42362]
[1744358893940,6.42263,1557.0,1556.6,12.84798]
[1744358894236,61.50022,1557.1,1556.7,0.14487014]
[1744358894436,1.4949,1557.5,1556.7,0.14487014]
[1744358894643,1.4949,1557.5,1556.9,6.42268]
[1744358894943,1.4949,1557.5,1556.9,12.84547]
[1744358895241,0.55,1557.4,1556.6,6.4242]
[1744358895538,4.40487001,1557.3,1556.7,0.14427295]
[1744358895746,4.40487001,1557.3,1556.6,6.42411]
[1744358895906,1.94439,1557.5,1556.7,0.14522848]
[1744358896105,1.94439,1557.5,1556.7,6.56889848]
[1744358896722,0.55,1557.4,1556.7,0.14522848]
[1744358896933,1.94439,1557.5,1557.0,6.42257]
[1744358897240,1.94439,1557.5,1556.8,0.14484172]
[1744358897405,1.94439,1557.5,1557.0,0.1435906]
[1744358897600,1.94439,1557.5,1556.8,6.42336]
[1744358897828,6.42135,1557.4,1557.0,0.1435906]
[1744358898051,6.42152,1557.3,1556.9,6.56709612]
[1744358898201,6.4207,1557.5,1557.1,6.42183]
[1744358898636,6.42048,1557.6,1557.1,6.42198]
[1744358898900,55.084,1557.7,1556.9,8.02538]
[1744358899100,6.42054,1557.5,1556.9,8.02546]
[1744358899321,6.42073,1557.5,1557.0,6.42259]
[1744358899544,6.42142,1557.3,1556.9,6.42297]
[1744358900040,12.84302,1557.3,1556.9,6.42297]
[1744358900246,0.55,1557.4,1556.6,7.9061]
[1744358900541,6.4235,1556.8,1556.4,6.42498]
[1744358900726,6.42345,1556.8,1556.3,8.00152]
[1744358900928,6.42345,1556.8,1556.4,6.42492]
[1744358901335,6.42444,1556.6,1556.2,6.42586]
[1744358901641,12.84894,1556.6,1556.4,0.14356139]
[1744358901841,6.42408,1556.7,1556.3,6.56952634]
[1744358902044,6.42408,1556.7,1556.3,6.4251]
[1744358902209,3.0,1557.0,1556.3,0.14406789]
[1744358902413,6.42397,1556.7,1556.3,6.42534]
[1744358902717,12.84712,1556.8,1556.4,6.56842139]
[1744358903034,6.42304,1556.9,1556.5,12.84909]
[1744358903235,6.4231,1556.9,1556.5,6.42451]
[1744358903548,6.42308,1556.9,1556.5,6.42459]
[1744358903906,0.55,1557.0,1556.1,0.05]
[1744358904141,6.42437,1556.6,1556.2,0.14600847]
[1744358904308,6.42336,1556.9,1556.1,0.05]
[1744358904507,6.97343,1556.8,1556.2,0.14929586]
[1744358905048,6.42522,1556.4,1556.2,0.14929586]
[1744358905413,6.42483,1556.5,1556.1,0.05]
[1744358905414,6.4259,1556.2,1556.1,0.05]
[1744358906317,9.9759,1556.2,1556.1,0.05]
[1744358906965,6.42874,1555.6,1555.4,0.41178881]
[1744358907275,6.4288,1555.5,1555.4,0.41178881]
[1744358909066,6.42874,1555.6,1555.4,0.41178881]
[1744358909380,1.5985,1555.8,1555.4,6.84095881]
[1744358909545,1.6087,1556.2,1555.4,6.84069881]
[1744358909740,1.6087,1556.2,1555.4,0.41178881]
[1744358909946,0.55,1556.1,1555.4,0.41178881]
[1744358910556,3.0,1556.0,1555.4,0.41178881]
[1744358910968,0.55,1555.9,1555.4,0.41178881]
[1744358911167,56.7187,1556.2,1555.5,7.93266]
[1744358911478,2.122783,1556.5,1555.8,6.42748]
[1744358911775,1.4803,1556.5,1555.8,6.42749]
[1744358911982,1.4803,1556.5,1555.7,9.42783]
[1744358912185,6.42694,1556.0,1555.6,3.59202187]
[1744358912341,6.97562,1556.3,1555.6,3.59202187]
[1744358912549,6.42748,1555.9,1555.7,0.59202187]
[1744358913286,12.85223,1556.2,1555.8,6.42736]
[1744358913482,10.90498,1556.5,1555.7,0.59202187]
[1744358913483,4.4803,1556.5,1555.7,0.59202187]
[1744358913684,6.42596,1556.2,1555.7,0.59202187]
[1744358913852,6.42553,1556.3,1555.9,6.42692]
[1744358914274,6.42523,1556.4,1556.0,6.42659]
[1744358914483,6.42479,1556.5,1556.1,6.42615]
[1744358914690,6.42479,1556.5,1556.1,13.44427187]
[1744358914864,6.42219,1557.2,1556.5,6.42466]
[1744358914865,55.11,1556.9,1556.5,6.42466]
[1744358915183,55.11,1556.9,1556.6,6.4241]
[1744358915384,55.11,1556.9,1556.5,9.42427]
[1744358915584,6.42279,1557.0,1556.6,12.84807]
[1744358915753,6.42279,1557.0,1556.6,7.01603187]
[1744358916085,1.99691,1557.0,1556.6,0.59202187]
[1744358916299,0.55,1557.0,1556.6,0.59202187]
[1744358916773,1.6241,1557.1,1556.5,6.42432]
[1744358916974,1.6241,1557.1,1556.6,6.42424]
[1744358917156,1.6241,1557.1,1556.5,6.4246]
[1744358917360,1.2392943,1557.4,1556.5,9.42467]
[1744358917686,56.6437,1557.5,1557.0,6.42255]
[1744358918213,56.6437,1557.5,1556.8,1.4725]
[1744358918487,55.117,1557.5,1557.1,12.84405]
[1744358918688,1.6387,1557.8,1556.9,0.35417971]
[1744358918689,1.6387,1557.8,1557.0,9.4226]
[1744358918902,1.6387,1558.1,1557.4,6.4208]
[1744358919081,6.41939,1557.8,1557.4,6.4208]
[1744358919395,6.41889,1557.9,1557.0,3.0]
[1744358919396,6.42015,1557.6,1557.0,3.0]
[1744358919605,12.83971,1557.7,1557.3,6.42132]
[1744358919892,6.41891,1557.9,1557.3,6.42132]
[1744358920096,6.42018,1557.6,1557.1,6.42214]
[1744358920257,6.42095,1557.5,1557.1,12.84411]
[1744358920891,6.41976,1557.7,1557.0,3.0]
[1744358921053,6.41976,1557.7,1557.3,6.42105]
[1744358921263,6.41849,1558.0,1557.1,7.01162124]
[1744358921264,6.42014,1557.6,1557.1,7.01145124]
[1744358921457,6.42068,1557.5,1557.1,7.01145124]
[1744358921694,4.95487001,1557.9,1557.1,0.58943124]
[1744358921901,6.42178,1557.2,1556.8,1.4725]
[1744358922112,6.42135,1557.4,1557.0,6.42244]
[1744358922265,6.42122,1557.4,1557.0,6.42243]